[Event "29th Czech Open-Rapid 2018"]
[Site "Pardubice"]
[Date "2018.07.19"]
[Round "6"]
[White "Mirzoeva, Elmira"]
[Black "Gutman, Gennadi"]
[Result "0-1"]
[ECO "A45"]
[WhiteElo "2181"]
[BlackElo "2402"]
[Annotator "NA"]
[PlyCount "94"]
[EventDate "2018.07.18"]
[EventType "swiss"]
[EventCountry "CZE"]
[SourceTitle "playchess.com"]
[Source "ChessBase"]
[SourceQuality "1"]
[TimeControl "900+10"]

1. d4 {[%emt 0:00:00]} Nf6 2. Bf4 c5 {[%emt 0:00:11]} 3. e3 {[%emt 0:00:00]} d5 {[%emt 0:00:42]} 4. c3 {[%emt 0:00:14]} Nc6 {[%emt 0:00:06]} 5. Nd2 {[%emt 0:00:05]} cxd4 {[%emt 0:01:59]} 6. exd4 {[%emt 0:00:09]} Bf5 {[%emt 0:00:04]} 7. Qb3 {[%emt 0:00:59]} Qc8 {[%emt 0:00:13]} 8. Ngf3 {[%emt 0:00:31]} e6 {[%emt 0:00:04]} 9. h3 {[%emt 0:00:39]} h6 {[%emt 0:01:04]} 10. Be2 {[%emt 0:00:22]} Be7 {[%emt 0:00:04]} 11. O-O {[%emt 0:00:11]} O-O {[%emt 0:00:03]} 12. Rfe1 {[%emt 0:00:50]} a6 {[%emt 0:00:15]} 13. a4 {[%emt 0:01:07]} Na5 {[%emt 0:00:51]} 14. Qa2 {[%emt 0:00:39]} Qd8 {[%emt 0:00:11]} 15. b4 {[%emt 0:00:19]} Nc6 {[%emt 0:00:02]} 16. a5 {[%emt 0:00:04]} Bd6 {[%emt 0:00:09]} 17. Bxd6 {[%emt 0:00:51]} Qxd6 {[%emt 0:00:03]} 18. Nb3 {[%emt 0:00:03]} Ne4 {[%emt 0:00:47]} 19. Qb2 {[%emt 0:00:22]} Rfe8 {[%emt 0:00:05]} 20. Rad1 {[%emt 0:04:24]} Qc7 {[%emt 0:00:04]} 21. Nfd2 {[%emt 0:00:28]} Nd6 {[%emt 0:00:07]} 22. Nc5 {[%emt 0:00:18]} Re7 {[%emt 0:00:37]} 23. Nf1 {[%emt 0:00:05]} Rae8 {[%emt 0:00:11]} 24. Ne3 {[%emt 0:00:03]} Bg6 {[%emt 0:00:04]} 25. Qb3 {[%emt 0:00:47]} Na7 {[%emt 0:00:27]} 26. c4 {[%emt 0:00:04]} dxc4 {[%emt 0:00:04]} 27. Nxc4 {[%emt 0:01:08]} Nc6 28. Nb6 {[%emt 0:00:47]} Nf5 {[%emt 0:01:14]} 29. Qc3 Qd6 {[%emt 0:03:06]} 30. d5 {[%emt 0:03:08]} exd5 {[%emt 0:00:12]} 31. Nxd5 {[%emt 0:00:06]} Rxe2 {[%emt 0:00:46]} 32. Rxe2 {[%emt 0:00:27]} Rxe2 {[%emt 0:00:10]} 33. Nxb7 {[%emt 0:00:14]} Qe5 {[%emt 0:01:39]} 34. Qxc6 {[%emt 0:00:10]} Nd4 {[%emt 0:01:25]} 35. Qc8+ {[%emt 0:00:33]} Kh7 {[%emt 0:00:02]} 36. Ne3 {[%emt 0:00:26]} Rxe3 {[%emt 0:01:00]} 37. fxe3 {[%emt 0:00:02]} Qxe3+ {[%emt 0:00:03]} 38. Kh1 {[%emt 0:00:09]} Be4 {[%emt 0:00:03]} 39. Qg4 {[%emt 0:00:26]} f5 {[%emt 0:00:27]} 40. Qh4 {[%emt 0:00:04]} Bxg2+ {[%emt 0:00:32]} 41. Kxg2 {[%emt 0:00:04]} Qf3+ {[%emt 0:00:14]} 42. Kh2 {[%emt 0:00:19]} Qe2+ {[%emt 0:00:02]} 43. Kg3 {[%emt 0:00:09]} Qxd1 {[%emt 0:00:01]} 44. Kg2 {[%emt 0:00:08]} Qf3+ {[%emt 0:00:12]} 45. Kh2 {[%emt 0:00:09]} Qe2+ {[%emt 0:00:01]} 46. Kh1 {[%emt 0:00:05]} Qf1+ {[%emt 0:00:21]} 47. Kh2 {[%emt 0:00:01]} Nf3+ {[%emt 0:00:01]} 0-1

[Event "29th Czech Open-Rapid 2018"]
[Site "Pardubice"]
[Date "2018.07.19"]
[Round "6"]
[White "Illetsko, Jaroslav"]
[Black "Natarov, Ilya"]
[Result "1-0"]
[ECO "B31"]
[WhiteElo "2177"]
[BlackElo "1808"]
[Annotator "NA"]
[PlyCount "39"]
[EventDate "2018.07.18"]
[EventType "swiss"]
[EventCountry "CZE"]
[SourceTitle "playchess.com"]
[Source "ChessBase"]
[SourceQuality "1"]
[TimeControl "900+10"]

1. e4 {[%emt 0:00:00]} c5 {[%emt 0:00:00]} 2. Nf3 Nc6 3. Bb5 {[%emt 0:00:16]} g6 {[%emt 0:00:17]} 4. O-O {[%emt 0:00:23]} Bg7 {[%emt 0:00:02]} 5. Re1 {[%emt 0:00:09]} a6 {[%emt 0:00:01]} 6. Bxc6 {[%emt 0:00:33]} bxc6 {[%emt 0:00:01]} 7. d3 {[%emt 0:00:53]} Rb8 {[%emt 0:00:01]} 8. c3 {[%emt 0:00:33]} Qa5 {[%emt 0:01:01]} 9. Qc2 {[%emt 0:00:38]} d6 {[%emt 0:00:03]} 10. Nbd2 {[%emt 0:01:28]} e6 {[%emt 0:00:30]} 11. Nc4 {[%emt 0:00:12]} Qc7 {[%emt 0:00:04]} 12. e5 {[%emt 0:00:18]} dxe5 {[%emt 0:00:12]} 13. Nfxe5 {[%emt 0:00:37]} f6 {[%emt 0:01:18]} 14. Nf3 {[%emt 0:00:17]} Ne7 {[%emt 0:00:04]} 15. Be3 {[%emt 0:00:13]} O-O {[%emt 0:00:45]} 16. Bxc5 {[%emt 0:00:14]} Rd8 {[%emt 0:00:02]} 17. Nd4 {[%emt 0:01:30]} Rd5 {[%emt 0:01:16]} 18. Bxe7 {[%emt 0:00:16]} Qxe7 {[%emt 0:00:03]} 19. Nxc6 {[%emt 0:00:04]} Qd6 {[%emt 0:00:15]} 20. Nxd6 {[%emt 0:00:03]} 1-0

[Event "29th Czech Open-Rapid 2018"]
[Site "Pardubice"]
[Date "2018.07.19"]
[Round "6"]
[White "Nikologorsky, Matfei"]
[Black "Dolezal, Radoslav"]
[Result "1-0"]
[ECO "B17"]
[WhiteElo "2140"]
[BlackElo "2339"]
[Annotator "NA"]
[PlyCount "85"]
[EventDate "2018.07.18"]
[EventType "swiss"]
[EventCountry "CZE"]
[SourceTitle "playchess.com"]
[Source "ChessBase"]
[SourceQuality "1"]
[TimeControl "900+10"]

1. e4 {[%emt 0:00:00]} c6 {[%emt 0:00:00]} 2. d4 {[%emt 0:00:00]} d5 {[%emt 0:00:00]} 3. Nd2 {[%emt 0:00:00]} dxe4 {[%emt 0:00:00]} 4. Nxe4 {[%emt 0:00:00]} Nd7 {[%emt 0:00:00]} 5. Nf3 {[%emt 0:00:13]} Ngf6 {[%emt 0:00:00]} 6. Ng3 {[%emt 0:00:56]} g6 {[%emt 0:00:01]} 7. h4 {[%emt 0:00:21]} h6 {[%emt 0:00:13]} 8. Bd3 {[%emt 0:00:22]} Bg7 {[%emt 0:00:19]} 9. h5 {[%emt 0:00:02]} g5 {[%emt 0:00:01]} 10. Nf5 Bf8 11. Bd2 {[%emt 0:00:31]} Nb6 {[%emt 0:00:19]} 12. Qe2 {[%emt 0:00:27]} Bxf5 {[%emt 0:03:01]} 13. Bxf5 {[%emt 0:00:03]} Bg7 {[%emt 0:00:03]} 14. O-O-O {[%emt 0:00:14]} Qd5 {[%emt 0:00:13]} 15. Bb4 {[%emt 0:02:27]} O-O {[%emt 0:00:02]} 16. Bd3 {[%emt 0:00:07]} Qxa2 {[%emt 0:00:02]} 17. c3 {[%emt 0:00:05]} Nfd5 {[%emt 0:00:16]} 18. Bb1 {[%emt 0:00:52]} Qc4 {[%emt 0:00:54]} 19. Qc2 {[%emt 0:00:37]} f5 {[%emt 0:00:43]} 20. Ba3 {[%emt 0:00:15]} Qa4 {[%emt 0:02:52]} 21. Qe2 {[%emt 0:01:57]} Nf4 {[%emt 0:01:28]} 22. Qxe7 {[%emt 0:01:04]} Rf7 {[%emt 0:03:46]} 23. Ba2 {[%emt 0:00:55]} Nbd5 {[%emt 0:00:02]} 24. Qe1 {[%emt 0:01:01]} Bf8 {[%emt 0:02:26]} 25. Bxd5 {[%emt 0:00:30]} Nxd5 {[%emt 0:00:38]} 26. Bxf8 {[%emt 0:00:13]} Raxf8 {[%emt 0:00:43]} 27. Qe6 {[%emt 0:00:04]} Qa1+ {[%emt 0:01:05]} 28. Kc2 {[%emt 0:00:17]} Qa2 {[%emt 0:00:01]} 29. Qxh6 {[%emt 0:00:41]} Qc4 {[%emt 0:00:31]} 30. Kd2 {[%emt 0:01:15]} Qb3 {[%emt 0:00:04]} 31. Rb1 {[%emt 0:00:25]} g4 {[%emt 0:00:05]} 32. Ne5 {[%emt 0:00:25]} Nf6 {[%emt 0:00:19]} 33. Nxf7 {[%emt 0:00:58]} Ne4+ {[%emt 0:00:01]} 34. Ke3 {[%emt 0:00:01]} Rxf7 {[%emt 0:00:04]} 35. Qg6+ {[%emt 0:00:14]} Kf8 {[%emt 0:00:02]} 36. Kf4 {[%emt 0:01:18]} Qc2 {[%emt 0:00:07]} 37. Qh6+ {[%emt 0:00:07]} Ke7 {[%emt 0:00:09]} 38. Rbe1 {[%emt 0:00:39]} Qxf2+ {[%emt 0:00:39]} 39. Ke5 {[%emt 0:00:01]} Qxb2 {[%emt 0:00:05]} 40. Rb1 {[%emt 0:00:42]} Qe2 {[%emt 0:00:02]} 41. Rxb7+ {[%emt 0:00:02]} Ke8 {[%emt 0:00:10]} 42. Qe6+ {[%emt 0:00:07]} Kd8 {[%emt 0:00:06]} 43. Rb8+ {[%emt 0:00:08]} 1-0

[Event "29th Czech Open-Rapid 2018"]
[Site "Pardubice"]
[Date "2018.07.19"]
[Round "6"]
[White "Zlatin, Alexander"]
[Black "Burdalev, Kirill"]
[Result "1/2-1/2"]
[ECO "B03"]
[WhiteElo "2135"]
[BlackElo "2383"]
[Annotator "NA"]
[PlyCount "74"]
[EventDate "2018.07.18"]
[EventType "swiss"]
[EventCountry "CZE"]
[SourceTitle "playchess.com"]
[Source "ChessBase"]
[SourceQuality "1"]
[TimeControl "900+10"]

1. e4 {[%emt 0:00:00]} Nf6 {[%emt 0:00:00]} 2. e5 {[%emt 0:00:00]} Nd5 {[%emt 0:00:00]} 3. d4 {[%emt 0:00:00]} d6 {[%emt 0:00:00]} 4. c4 {[%emt 0:00:06]} Nb6 {[%emt 0:00:00]} 5. Nf3 {[%emt 0:00:25]} Bg4 {[%emt 0:00:25]} 6. h3 {[%emt 0:01:18]} Bxf3 {[%emt 0:00:15]} 7. Qxf3 {[%emt 0:00:08]} Nc6 {[%emt 0:00:01]} 8. e6 {[%emt 0:00:37]} fxe6 {[%emt 0:00:11]} 9. Be3 {[%emt 0:00:19]} e5 {[%emt 0:00:39]} 10. d5 {[%emt 0:00:20]} Nb4 {[%emt 0:00:38]} 11. Qe4 {[%emt 0:01:09]} c6 {[%emt 0:00:07]} 12. Nc3 {[%emt 0:00:15]} e6 {[%emt 0:00:23]} 13. dxe6 {[%emt 0:01:11]} Qf6 {[%emt 0:00:12]} 14. a3 {[%emt 0:00:36]} Na6 {[%emt 0:00:01]} 15. Be2 {[%emt 0:00:47]} Nc7 {[%emt 0:00:16]} 16. O-O {[%emt 0:00:54]} Nxe6 {[%emt 0:01:01]} 17. f4 {[%emt 0:00:41]} Be7 {[%emt 0:00:27]} 18. Bg4 {[%emt 0:01:31]} Nxf4 {[%emt 0:02:21]} 19. Bxf4 {[%emt 0:01:00]} exf4 {[%emt 0:00:09]} 20. Rae1 {[%emt 0:00:01]} g5 {[%emt 0:01:45]} 21. Qd3 {[%emt 0:00:02]} O-O {[%emt 0:00:42]} 22. Re6 {[%emt 0:00:02]} Qg7 {[%emt 0:00:15]} 23. Rfe1 {[%emt 0:00:05]} Bf6 {[%emt 0:00:38]} 24. Rxd6 {[%emt 0:00:35]} Rad8 {[%emt 0:00:23]} 25. Be6+ {[%emt 0:00:01]} Kh8 {[%emt 0:00:06]} 26. Rd1 {[%emt 0:00:06]} Rxd6 {[%emt 0:00:22]} 27. Qxd6 {[%emt 0:00:02]} Be7 {[%emt 0:01:15]} 28. Qd3 {[%emt 0:00:36]} Qe5 {[%emt 0:00:12]} 29. Qe4 {[%emt 0:00:43]} Qxe4 {[%emt 0:02:31]} 30. Nxe4 {[%emt 0:00:01]} c5 {[%emt 0:00:57]} 31. b4 {[%emt 0:00:59]} cxb4 {[%emt 0:01:37]} 32. c5 {[%emt 0:00:01]} Na4 {[%emt 0:00:50]} 33. axb4 {[%emt 0:00:02]} Rd8 {[%emt 0:00:55]} 34. Rxd8+ {[%emt 0:00:53]} Bxd8 {[%emt 0:00:01]} 35. Nd6 {[%emt 0:00:07]} Kg7 {[%emt 0:00:10]} 36. Nxb7 {[%emt 0:00:05]} Bc7 {[%emt 0:00:06]} 37. Bd7 Nb2 1/2-1/2

[Event "29th Czech Open-Rapid 2018"]
[Site "Pardubice"]
[Date "2018.07.19"]
[Round "6"]
[White "Kutynec, Vladimir"]
[Black "Zdrazil, Tomas"]
[Result "0-1"]
[ECO "E95"]
[WhiteElo "2134"]
[BlackElo "2017"]
[Annotator "NA"]
[PlyCount "140"]
[EventDate "2018.07.18"]
[EventType "swiss"]
[EventCountry "CZE"]
[SourceTitle "playchess.com"]
[Source "ChessBase"]
[SourceQuality "1"]
[TimeControl "900+10"]

1. Nf3 {[%emt 0:00:00]} Nf6 {[%emt 0:00:00]} 2. c4 {[%emt 0:00:00]} g6 {[%emt 0:00:00]} 3. Nc3 {[%emt 0:00:00]} Bg7 {[%emt 0:00:00]} 4. e4 {[%emt 0:00:00]} d6 {[%emt 0:00:00]} 5. d4 {[%emt 0:00:00]} O-O {[%emt 0:00:00]} 6. Be2 {[%emt 0:00:00]} e5 {[%emt 0:00:00]} 7. O-O {[%emt 0:00:13]} Nbd7 {[%emt 0:00:47]} 8. Re1 {[%emt 0:00:03]} c6 {[%emt 0:00:07]} 9. Bf1 {[%emt 0:00:03]} Re8 {[%emt 0:00:33]} 10. d5 {[%emt 0:00:02]} c5 {[%emt 0:00:07]} 11. Rb1 {[%emt 0:00:42]} Rf8 {[%emt 0:00:23]} 12. b4 {[%emt 0:00:18]} cxb4 {[%emt 0:02:29]} 13. Rxb4 {[%emt 0:00:04]} Qa5 {[%emt 0:00:04]} 14. Qa4 {[%emt 0:01:16]} Qxa4 {[%emt 0:00:42]} 15. Nxa4 {[%emt 0:00:04]} b6 {[%emt 0:00:05]} 16. Bd3 {[%emt 0:01:07]} Nh5 {[%emt 0:00:38]} 17. g3 {[%emt 0:00:04]} f5 {[%emt 0:00:50]} 18. Ng5 {[%emt 0:02:21]} Nc5 {[%emt 0:02:34]} 19. Nxc5 {[%emt 0:00:06]} bxc5 {[%emt 0:00:27]} 20. Rb3 {[%emt 0:00:19]} f4 {[%emt 0:01:47]} 21. Bf1 {[%emt 0:03:09]} Bh6 {[%emt 0:01:41]} 22. Ne6 {[%emt 0:06:05]} Bxe6 {[%emt 0:03:06]} 23. dxe6 {[%emt 0:00:01]} fxg3 {[%emt 0:00:06]} 24. hxg3 {[%emt 0:00:08]} Bxc1 {[%emt 0:00:01]} 25. Rxc1 {[%emt 0:00:01]} Ng7 {[%emt 0:00:11]} 26. Bh3 {[%emt 0:01:35]} Rfe8 {[%emt 0:00:17]} 27. Rd1 {[%emt 0:00:11]} Nxe6 {[%emt 0:00:10]} 28. Rxd6 {[%emt 0:00:06]} Nd4 {[%emt 0:01:23]} 29. Rb7 {[%emt 0:00:02]} Rad8 {[%emt 0:00:58]} 30. Bd7 {[%emt 0:00:58]} Rf8 {[%emt 0:00:09]} 31. Rxa7 {[%emt 0:00:37]} Kh8 {[%emt 0:00:01]} 32. Rc7 {[%emt 0:00:01]} Nf3+ {[%emt 0:00:09]} 33. Kg2 {[%emt 0:00:10]} Ng5 {[%emt 0:00:01]} 34. f3 {[%emt 0:00:28]} Nxf3 {[%emt 0:00:02]} 35. Re6 {[%emt 0:00:12]} Rf7 {[%emt 0:00:29]} 36. Rd6 {[%emt 0:00:19]} Ng5 {[%emt 0:00:07]} 37. Rc8 {[%emt 0:00:07]} Rxc8 {[%emt 0:00:04]} 38. Bxc8 {[%emt 0:00:01]} Nxe4 {[%emt 0:00:04]} 39. Re6 {[%emt 0:00:07]} Rf2+ {[%emt 0:00:32]} 40. Kg1 {[%emt 0:00:00]} Rxa2 {[%emt 0:00:01]} 41. Rxe5 {[%emt 0:00:01]} Nxg3 {[%emt 0:00:33]} 42. Rxc5 {[%emt 0:00:02]} Kg7 {[%emt 0:00:10]} 43. Re5 {[%emt 0:00:13]} Rc2 {[%emt 0:00:06]} 44. Be6 {[%emt 0:00:34]} Ne2+ {[%emt 0:00:06]} 45. Kf1 {[%emt 0:00:06]} Nd4 {[%emt 0:00:06]} 46. Bd5 {[%emt 0:00:03]} Kf6 {[%emt 0:00:05]} 47. Re4 {[%emt 0:00:02]} Nf5 {[%emt 0:00:07]} 48. Ke1 {[%emt 0:00:18]} h5 {[%emt 0:00:04]} 49. Kd1 {[%emt 0:00:01]} Ra2 {[%emt 0:00:32]} 50. Re6+ {[%emt 0:00:06]} Kg5 {[%emt 0:00:01]} 51. Kc1 {[%emt 0:00:07]} h4 {[%emt 0:00:09]} 52. Kb1 {[%emt 0:00:01]} Rd2 {[%emt 0:00:05]} 53. Kc1 {[%emt 0:00:02]} Rd4 {[%emt 0:00:13]} 54. Kc2 {[%emt 0:00:06]} h3 {[%emt 0:00:03]} 55. Re2 {[%emt 0:00:04]} Kg4 {[%emt 0:00:25]} 56. Kc3 {[%emt 0:00:05]} Rd1 {[%emt 0:00:14]} 57. c5 {[%emt 0:00:01]} Rc1+ {[%emt 0:00:09]} 58. Kb4 {[%emt 0:00:03]} Rb1+ {[%emt 0:00:14]} 59. Ka5 {[%emt 0:00:09]} Rd1 {[%emt 0:00:10]} 60. Bf7 {[%emt 0:00:11]} Kf3 {[%emt 0:00:03]} 61. Rc2 {[%emt 0:00:12]} g5 {[%emt 0:00:17]} 62. Be6 {[%emt 0:00:07]} Ne3 {[%emt 0:00:07]} 63. Rh2 {[%emt 0:00:09]} g4 {[%emt 0:00:09]} 64. c6 {[%emt 0:00:01]} Rc1 {[%emt 0:00:06]} 65. Kb6 {[%emt 0:00:02]} Kg3 {[%emt 0:00:06]} 66. Re2 {[%emt 0:00:02]} h2 {[%emt 0:00:11]} 67. Rxh2 {[%emt 0:00:23]} Kxh2 {[%emt 0:00:01]} 68. Bxg4 {[%emt 0:00:03]} Nxg4 {[%emt 0:00:29]} 69. c7 {[%emt 0:00:00]} Nf6 {[%emt 0:00:07]} 70. Kb7 {[%emt 0:00:02]} Ne8 {[%emt 0:00:04]} 0-1

[Event "29th Czech Open-Rapid 2018"]
[Site "Pardubice"]
[Date "2018.07.19"]
[Round "6"]
[White "Tarakanov, Oleg"]
[Black "Holy, Filip"]
[Result "1-0"]
[ECO "B15"]
[WhiteElo "2128"]
[BlackElo "2042"]
[Annotator "NA"]
[PlyCount "77"]
[EventDate "2018.07.18"]
[EventType "swiss"]
[EventCountry "CZE"]
[SourceTitle "playchess.com"]
[Source "ChessBase"]
[SourceQuality "1"]
[TimeControl "900+10"]

1. e4 {[%emt 0:00:01]} c6 {[%emt 0:00:03]} 2. d4 {[%emt 0:00:06]} d5 {[%emt 0:00:01]} 3. Nc3 {[%emt 0:00:07]} dxe4 {[%emt 0:00:02]} 4. Nxe4 {[%emt 0:00:01]} Nf6 {[%emt 0:00:03]} 5. Ng3 {[%emt 0:00:26]} h5 {[%emt 0:00:04]} 6. Bc4 {[%emt 0:00:28]} Qc7 {[%emt 0:00:44]} 7. Nf3 {[%emt 0:01:33]} e6 {[%emt 0:01:48]} 8. O-O {[%emt 0:00:22]} Nbd7 {[%emt 0:00:52]} 9. Qe2 {[%emt 0:01:24]} Be7 {[%emt 0:03:39]} 10. Ng5 {[%emt 0:03:05]} Nf8 {[%emt 0:00:40]} 11. Re1 {[%emt 0:00:58]} b5 {[%emt 0:03:05]} 12. Bb3 {[%emt 0:00:28]} N8h7 {[%emt 0:01:23]} 13. h4 {[%emt 0:03:30]} Nxg5 {[%emt 0:00:11]} 14. Bxg5 {[%emt 0:00:02]} Bb7 {[%emt 0:01:46]} 15. c4 {[%emt 0:00:12]} Rd8 {[%emt 0:00:25]} 16. Rad1 {[%emt 0:00:27]} a6 {[%emt 0:00:43]} 17. c5 {[%emt 0:01:15]} a5 {[%emt 0:00:52]} 18. a3 {[%emt 0:00:16]} Ba6 {[%emt 0:01:10]} 19. Qf3 {[%emt 0:00:05]} b4 {[%emt 0:00:19]} 20. axb4 {[%emt 0:00:03]} axb4 {[%emt 0:00:01]} 21. Bf4 {[%emt 0:00:21]} Qb7 {[%emt 0:00:05]} 22. Be5 {[%emt 0:00:08]} Bb5 {[%emt 0:00:12]} 23. Re3 {[%emt 0:00:43]} Ra8 {[%emt 0:00:15]} 24. Rde1 {[%emt 0:00:12]} Kf8 {[%emt 0:00:24]} 25. Qd1 {[%emt 0:00:47]} Ng4 {[%emt 0:00:11]} 26. Rf3 {[%emt 0:00:05]} Nf6 {[%emt 0:00:08]} 27. Qd2 {[%emt 0:00:17]} Ba4 {[%emt 0:00:02]} 28. Bc4 {[%emt 0:00:06]} Rb8 {[%emt 0:00:19]} 29. b3 {[%emt 0:00:14]} Bb5 {[%emt 0:00:01]} 30. Qxb4 {[%emt 0:00:01]} Bxc4 {[%emt 0:00:01]} 31. Qxc4 {[%emt 0:00:01]} Qb4 {[%emt 0:00:11]} 32. Ra1 {[%emt 0:00:25]} Qxc4 {[%emt 0:00:26]} 33. bxc4 {[%emt 0:00:01]} Rc8 {[%emt 0:00:05]} 34. Ra7 {[%emt 0:00:06]} Ng4 {[%emt 0:00:10]} 35. Bd6 {[%emt 0:00:11]} Re8 {[%emt 0:00:16]} 36. Rfa3 {[%emt 0:00:18]} Bxd6 {[%emt 0:00:11]} 37. cxd6 {[%emt 0:00:01]} Rh6 {[%emt 0:00:10]} 38. Ne4 {[%emt 0:00:11]} Rb8 {[%emt 0:00:10]} 39. Ra8 {[%emt 0:00:08]} 1-0

[Event "29th Czech Open-Rapid 2018"]
[Site "Pardubice"]
[Date "2018.07.19"]
[Round "6"]
[White "Fedotov, Konstantin"]
[Black "Harshini, A."]
[Result "1-0"]
[ECO "C24"]
[WhiteElo "2123"]
[BlackElo "1747"]
[Annotator "NA"]
[PlyCount "81"]
[EventDate "2018.07.18"]
[EventType "swiss"]
[EventCountry "CZE"]
[SourceTitle "playchess.com"]
[Source "ChessBase"]
[SourceQuality "1"]
[TimeControl "900+10"]

1. e4 {[%emt 0:00:00]} e5 {[%emt 0:00:00]} 2. Bc4 {[%emt 0:00:00]} Nf6 {[%emt 0:00:00]} 3. d4 {[%emt 0:00:00]} d6 {[%emt 0:00:13]} 4. dxe5 {[%emt 0:00:08]} dxe5 {[%emt 0:00:01]} 5. Bxf7+ {[%emt 0:00:05]} Ke7 {[%emt 0:00:16]} 6. Qxd8+ {[%emt 0:00:10]} Kxd8 {[%emt 0:00:01]} 7. f3 {[%emt 0:00:03]} Nc6 {[%emt 0:00:09]} 8. Be3 {[%emt 0:00:12]} Bd6 {[%emt 0:00:11]} 9. Nc3 {[%emt 0:00:30]} Rf8 {[%emt 0:00:02]} 10. Bb3 {[%emt 0:00:15]} a6 {[%emt 0:00:10]} 11. a3 {[%emt 0:00:09]} Na5 {[%emt 0:00:28]} 12. Ba2 {[%emt 0:00:05]} b5 {[%emt 0:00:01]} 13. O-O-O {[%emt 0:00:11]} Bd7 {[%emt 0:00:16]} 14. Rxd6 {[%emt 0:00:06]} cxd6 {[%emt 0:00:30]} 15. Bb6+ {[%emt 0:00:01]} Ke7 {[%emt 0:00:15]} 16. Bxa5 {[%emt 0:00:03]} g5 {[%emt 0:00:09]} 17. h3 {[%emt 0:00:05]} h5 {[%emt 0:00:22]} 18. Nge2 {[%emt 0:00:01]} h4 {[%emt 0:00:55]} 19. Rd1 {[%emt 0:00:02]} Bc6 {[%emt 0:00:07]} 20. Nd5+ {[%emt 0:01:14]} Nxd5 {[%emt 0:00:35]} 21. Bxd5 {[%emt 0:00:02]} Bxd5 {[%emt 0:00:02]} 22. Rxd5 {[%emt 0:00:02]} Rf6 {[%emt 0:01:42]} 23. Nc3 {[%emt 0:00:04]} Rc8 {[%emt 0:00:11]} 24. Rd3 {[%emt 0:00:03]} Ke6 {[%emt 0:00:21]} 25. Nd5 {[%emt 0:00:46]} Rf7 {[%emt 0:00:02]} 26. Bd2 {[%emt 0:00:19]} Rg7 {[%emt 0:00:23]} 27. Nb4 {[%emt 0:00:18]} Ra8 {[%emt 0:00:37]} 28. Rc3 {[%emt 0:00:24]} Kd7 {[%emt 0:05:08]} 29. Nd5 {[%emt 0:00:06]} Ra7 {[%emt 0:00:02]} 30. Be3 {[%emt 0:00:31]} Rb7 {[%emt 0:00:10]} 31. b4 {[%emt 0:00:28]} Rg6 {[%emt 0:00:29]} 32. Nb6+ {[%emt 0:00:16]} Ke6 {[%emt 0:01:46]} 33. Rc6 {[%emt 0:00:03]} Rg8 {[%emt 0:02:26]} 34. Nd5 {[%emt 0:00:25]} Ra8 {[%emt 0:00:38]} 35. Bc5 {[%emt 0:00:28]} Rd8 {[%emt 0:01:26]} 36. Rxa6 {[%emt 0:00:05]} Rbd7 {[%emt 0:00:26]} 37. Be3 {[%emt 0:00:12]} Rg8 {[%emt 0:00:04]} 38. Rb6 {[%emt 0:00:04]} Ra7 {[%emt 0:00:18]} 39. Kb2 {[%emt 0:00:01]} Rga8 {[%emt 0:00:08]} 40. Rxb5 {[%emt 0:00:03]} Rxa3 {[%emt 0:00:02]} 41. Nc7+ {[%emt 0:00:02]} 1-0

[Event "29th Czech Open-Rapid 2018"]
[Site "Pardubice"]
[Date "2018.07.19"]
[Round "6"]
[White "Vinklarek, Ondrej"]
[Black "Rakshitta, Ravi"]
[Result "1-0"]
[ECO "C77"]
[WhiteElo "2122"]
[BlackElo "1565"]
[Annotator "NA"]
[PlyCount "79"]
[EventDate "2018.07.18"]
[EventType "swiss"]
[EventCountry "CZE"]
[SourceTitle "playchess.com"]
[Source "ChessBase"]
[SourceQuality "1"]
[TimeControl "900+10"]

1. e4 {[%emt 0:00:18]} e5 {[%emt 0:00:20]} 2. Nf3 {[%emt 0:00:02]} Nc6 {[%emt 0:00:03]} 3. Bb5 {[%emt 0:00:01]} a6 {[%emt 0:00:01]} 4. Ba4 {[%emt 0:00:01]} Nf6 {[%emt 0:00:01]} 5. d3 {[%emt 0:00:04]} b5 {[%emt 0:00:03]} 6. Bb3 {[%emt 0:00:01]} Be7 {[%emt 0:00:01]} 7. O-O {[%emt 0:00:02]} O-O {[%emt 0:00:05]} 8. c3 {[%emt 0:00:02]} d5 {[%emt 0:00:14]} 9. Qe2 {[%emt 0:00:40]} Bg4 {[%emt 0:00:06]} 10. Nbd2 {[%emt 0:00:28]} dxe4 {[%emt 0:00:37]} 11. dxe4 {[%emt 0:00:07]} Na5 {[%emt 0:00:08]} 12. h3 {[%emt 0:00:39]} Nxb3 {[%emt 0:00:11]} 13. axb3 {[%emt 0:00:54]} Bh5 {[%emt 0:00:04]} 14. g4 {[%emt 0:00:11]} Nxg4 {[%emt 0:01:32]} 15. hxg4 {[%emt 0:00:03]} Bxg4 {[%emt 0:00:02]} 16. Qe3 {[%emt 0:00:54]} Qd6 {[%emt 0:00:10]} 17. Nh2 {[%emt 0:00:49]} Bh5 {[%emt 0:01:05]} 18. Qg3 {[%emt 0:01:34]} f5 {[%emt 0:00:52]} 19. exf5 {[%emt 0:00:40]} Rxf5 {[%emt 0:00:08]} 20. Ne4 {[%emt 0:00:03]} Qc6 {[%emt 0:00:24]} 21. Qg2 {[%emt 0:00:06]} Raf8 {[%emt 0:00:34]} 22. Ng3 {[%emt 0:01:48]} e4 {[%emt 0:04:54]} 23. Qxe4 {[%emt 0:01:53]} Qxe4 {[%emt 0:01:51]} 24. Nxe4 {[%emt 0:00:01]} Re5 {[%emt 0:00:08]} 25. Ng3 {[%emt 0:00:12]} Bf7 {[%emt 0:00:20]} 26. Bf4 {[%emt 0:00:14]} Rc5 {[%emt 0:00:02]} 27. Be3 {[%emt 0:00:12]} Rc6 {[%emt 0:00:05]} 28. b4 {[%emt 0:01:35]} h5 {[%emt 0:00:15]} 29. Bd4 {[%emt 0:01:30]} h4 {[%emt 0:00:11]} 30. Ne4 {[%emt 0:00:21]} Bd5 {[%emt 0:00:47]} 31. f3 {[%emt 0:00:24]} Rg6+ {[%emt 0:00:40]} 32. Kh1 {[%emt 0:00:06]} Rh6 {[%emt 0:00:41]} 33. Rae1 {[%emt 0:00:14]} Bd8 {[%emt 0:00:04]} 34. Rg1 {[%emt 0:00:20]} Rf7 {[%emt 0:00:15]} 35. Ng4 {[%emt 0:00:21]} Rg6 {[%emt 0:00:34]} 36. Ne5 {[%emt 0:00:24]} Rxg1+ {[%emt 0:00:08]} 37. Rxg1 {[%emt 0:00:01]} Re7 {[%emt 0:00:33]} 38. Nf6+ {[%emt 0:00:06]} Kf8 {[%emt 0:00:24]} 39. Nxd5 {[%emt 0:00:08]} c6 {[%emt 0:00:03]} 40. Ng6+ {[%emt 0:00:03]} 1-0